bitfinex-derivatives/quotes_ETHF0:USTF0_20260123
["timestamp","ask_amount","ask_price","bid_price","bid_amount"]
[1769177507680,0.36367996,2937.3,2936.1,5.75329383]
[1769177507980,0.36367996,2937.2,2936.1,5.75329383]
[1769177508172,0.1457306,2937.4,2936.1,5.75329383]
[1769177508375,0.36365435,2937.3,2936.1,5.75329383]
[1769177508578,0.36365435,2937.2,2936.1,5.75329383]
[1769177508874,0.1457306,2937.4,2936.1,5.75329383]
[1769177509074,0.36365485,2937.3,2936.1,5.75329383]
[1769177509275,0.36365485,2937.2,2936.1,5.75329383]
[1769177509475,0.1457306,2937.4,2936.1,5.75329383]
[1769177509676,0.36365627,2937.3,2936.1,5.75329383]
[1769177509878,0.36365627,2937.2,2936.1,5.75329383]
[1769177510081,0.1457306,2937.4,2936.1,5.75329383]
[1769177510380,0.36363221,2937.3,2936.1,5.75329383]
[1769177510580,0.36363221,2937.2,2936.1,5.75329383]
[1769177510782,0.1457306,2937.4,2936.1,5.75329383]
[1769177511370,0.1457306,2937.4,2935.9,6.47582118]
[1769177511371,0.90829383,2936.8,2935.9,3.06682118]
[1769177511578,0.90829383,2936.8,2935.8,0.00510742]
[1769177512681,0.1457306,2937.0,2935.8,0.00510742]
[1769177514585,0.36366021,2936.9,2935.8,0.00510742]
[1769177514881,0.36366021,2936.8,2935.8,0.00510742]
[1769177515082,0.1457306,2937.0,2935.8,0.00510742]
[1769177515282,0.36355155,2936.9,2935.8,0.00510742]
[1769177515479,0.1457306,2936.0,2935.3,3.06682118]
[1769177515686,0.51151054,2935.9,2934.5,3.97511501]
[1769177515978,0.36578765,2935.8,2934.5,0.90829383]
[1769177516184,0.1457306,2935.9,2934.5,0.90829383]
[1769177516579,0.1457306,2935.9,2934.5,0.91229904]
[1769177516780,0.1457306,2935.9,2934.6,4.865]
[1769177518081,0.90829383,2936.1,2934.6,4.865]
[1769177519182,0.3162406,2936.3,2934.8,0.90829383]
[1769177519385,0.36621668,2936.2,2934.9,0.14970366]
[1769177519593,0.17051,2936.3,2934.9,0.14970366]
[1769177519788,0.36622046,2936.2,2934.9,0.14970366]
[1769177520090,0.17051,2936.3,2934.9,0.14970366]
[1769177520389,0.15083802,2936.7,2935.1,0.90829383]
[1769177520585,0.90829383,2936.4,2935.1,0.90829383]
[1769177520790,0.36623966,2936.3,2935.1,0.90829383]
[1769177521789,0.1457306,2936.5,2935.1,1.05799749]
[1769177521988,1.05402443,2936.5,2935.1,1.05799749]
[1769177529303,0.17559742,2936.7,2935.2,0.14931907]
[1769177530193,0.00510742,2936.7,2935.4,1.0576129]
[1769177530800,0.00510742,2936.7,2935.5,0.14931907]
[1769177531100,0.00510742,2936.7,2935.7,0.90829383]
[1769177535901,0.00510742,2936.7,2935.7,1.0576129]
[1769177537401,0.00510742,2936.7,2935.8,0.14931907]
[1769177538805,0.00510742,2936.7,2936.0,0.90829383]
[1769177539406,0.00510742,2936.7,2935.8,1.0576129]
[1769177539904,0.17046,2937.2,2935.9,0.14931907]
[1769177540104,0.90829383,2937.4,2936.1,0.90829383]
[1769177540303,0.36698009,2937.3,2936.1,0.90829383]
[1769177540504,0.36694331,2937.2,2936.1,0.90829383]
[1769177540706,0.90829383,2937.4,2936.1,0.90829383]
[1769177541009,1.05104363,2937.7,2936.1,1.0576129]
[1769177541209,1.28849671,2937.6,2936.1,1.0576129]
[1769177541509,0.36696763,2937.5,2936.1,1.0576129]
[1769177541709,0.00411446,2937.7,2936.5,0.14931907]
[1769177542705,0.00411446,2937.7,2936.7,0.90829383]
[1769177542908,0.00411446,2937.7,2936.7,0.91191716]
[1769177543810,0.00411446,2937.7,2936.7,1.06123623]
[1769177545011,1.07868383,2938.4,2937.0,0.90829383]
[1769177545203,0.36653408,2938.3,2937.0,0.90829383]
[1769177545408,0.13863534,2938.5,2937.1,0.14931907]
[1769177546105,0.14247312,2938.5,2937.1,0.14931907]
[1769177546305,0.14247312,2938.5,2937.5,0.00510742]
[1769177546805,0.00383778,2938.5,2937.5,0.00510742]
[1769177548906,0.00383778,2938.5,2937.6,0.90829383]
[1769177554506,0.00383778,2938.5,2937.6,4.31629383]
[1769177554709,0.00383778,2938.5,2937.5,0.00510742]
[1769177555016,0.90829383,2938.4,2937.5,0.00510742]
[1769177555215,0.00383778,2938.5,2937.5,0.00510742]
[1769177564328,0.1497714,2938.4,2937.5,0.00510742]
[1769177566329,0.1497714,2938.1,2936.7,0.00362333]
[1769177566928,0.3201714,2938.1,2936.7,0.00362333]
[1769177567125,0.1497714,2938.0,2936.7,0.00362333]
[1769177571928,0.1497714,2937.8,2936.7,0.00362333]
[1769177573336,0.1704,2938.1,2936.7,0.00362333]
[1769177573532,0.36718521,2938.0,2936.7,0.14853909]
[1769177573730,0.1704,2938.1,2936.7,0.14853909]
[1769177574031,0.36718619,2938.0,2936.7,0.14853909]
[1769177574232,0.1704,2938.1,2936.7,0.14853909]
[1769177574431,0.36721462,2938.0,2936.7,0.14853909]
[1769177574635,0.15487882,2938.2,2936.7,0.14853909]
[1769177574935,0.36721936,2938.1,2936.7,0.14853909]
[1769177575135,0.15487882,2938.2,2936.7,0.14853909]
[1769177579132,0.00510742,2938.2,2936.8,0.14491576]
[1769177579326,0.00510742,2938.2,2936.9,0.14491576]
[1769177585441,0.15404012,2938.2,2936.9,0.14491576]
[1769177586241,0.15404012,2938.2,2936.8,8.40648]
[1769177589344,0.15404012,2938.2,2936.8,5.00548]
[1769177589837,0.15404012,2938.2,2936.8,0.17048]
[1769177590439,0.15196723,2938.0,2936.7,0.00362333]
[1769177590641,0.15196723,2937.8,2936.7,0.00362333]
[1769177591837,0.15196723,2937.6,2936.7,0.00362333]
[1769177592040,0.15196723,2937.4,2936.1,3.06682118]
[1769177592241,0.15196723,2937.2,2935.9,3.06682118]
[1769177592442,0.15196723,2937.0,2935.8,3.06682118]
[1769177592643,0.15196723,2937.0,2935.5,14.20482118]
[1769177592843,0.32241723,2937.4,2935.6,0.14010077]
[1769177593044,1.44086586,2937.3,2935.6,0.14303184]
[1769177593342,0.15196723,2937.1,2935.6,0.14303184]
[1769177593548,0.15196723,2937.1,2935.6,0.00293107]
[1769177593744,0.15196723,2936.9,2935.6,0.00293107]
[1769177597748,0.15707465,2936.5,2935.6,0.00293107]
[1769177610861,0.15196723,2936.3,2934.8,6.3]
[1769177611064,0.15196723,2936.3,2934.5,7.69810077]
[1769177611462,0.15196723,2936.3,2934.5,7.86871077]
[1769177611654,0.15196723,2936.3,2934.6,6.3]
[1769177611855,0.15618191,2936.3,2934.6,6.4737507]
[1769177612054,0.15618191,2936.3,2934.6,6.62384796]
[1769177612950,0.15618191,2936.3,2934.9,0.15009726]
[1769177614362,0.00421468,2936.3,2935.1,0.15009726]
[1769177614559,0.00421468,2936.3,2935.3,0.15009726]
[1769177614959,0.00421468,2936.3,2935.3,0.32065726]
[1769177615258,0.00421468,2936.3,2935.4,0.15009726]
[1769177616260,0.00510742,2936.5,2935.5,0.15009726]
[1769177617156,0.00949203,2936.5,2935.5,0.15009726]
[1769177617962,0.00949203,2936.5,2935.5,3.56009726]
[1769177620968,0.15155371,2937.1,2935.5,3.73064726]
[1769177621270,0.17045,2937.3,2935.7,0.15520468]
[1769177621461,0.36598108,2937.2,2935.7,0.15520468]
[1769177621658,0.36598108,2937.1,2935.7,0.15520468]
[1769177621864,0.15155371,2937.2,2935.7,0.15520468]
[1769177622166,0.36599467,2937.1,2935.7,0.15520468]
[1769177622366,0.15574898,2937.2,2935.7,0.15520468]
[1769177622668,0.36608602,2937.1,2935.7,0.15520468]
[1769177622969,0.15574898,2937.2,2936.0,0.9086194]
[1769177623170,0.36607555,2937.1,2936.0,0.9086194]
[1769177623372,0.15574898,2937.2,2936.0,0.9086194]
[1769177623573,0.36464476,2937.1,2936.0,0.9086194]
[1769177623772,0.15574898,2937.2,2936.0,0.9086194]
[1769177623974,0.3646448,2937.1,2936.0,0.9086194]
[1769177624271,0.15574898,2937.2,2936.0,0.9086194]
[1769177624471,0.36462134,2937.1,2936.0,0.9086194]
[1769177624673,0.15574898,2937.2,2936.0,0.9086194]
[1769177624969,0.36462325,2937.1,2936.0,0.9086194]
[1769177625169,0.15574898,2937.2,2936.0,0.9086194]
[1769177625368,0.36468097,2937.1,2936.0,0.9086194]
[1769177625567,0.00419527,2937.2,2936.0,0.9086194]
[1769177626971,1.06436838,2937.2,2935.8,8.251]
[1769177627171,0.15155371,2937.1,2935.8,8.251]
[1769177627867,0.15155371,2937.1,2935.7,7.53436408]
[1769177628066,0.15155371,2937.1,2935.7,1.08426682]
[1769177630667,0.15155371,2937.1,2935.8,0.9086194]
[1769177638481,1.06017311,2936.8,2935.7,0.00510742]
[1769177638982,0.17047,2937.0,2935.7,0.00510742]
[1769177639183,0.36437511,2936.9,2935.7,0.00510742]
[1769177639386,0.17047,2937.0,2935.7,0.00510742]
[1769177639586,0.36444518,2936.9,2935.7,0.00510742]
[1769177639778,0.17047,2937.0,2935.7,0.00510742]
[1769177639981,0.36444252,2936.9,2935.7,0.00510742]
[1769177640182,0.17047,2937.0,2935.7,0.00510742]
[1769177640379,0.36446762,2936.9,2935.7,0.00510742]
[1769177640583,0.15574898,2937.2,2935.8,0.9086194]
[1769177640784,0.36448365,2937.1,2935.8,0.9086194]
[1769177640982,0.36448365,2937.0,2935.8,0.9086194]
[1769177641184,0.15574898,2937.2,2935.8,0.9086194]
[1769177641386,0.36463546,2937.1,2935.8,0.9086194]
[1769177641580,1.06017311,2936.9,2935.7,0.00510742]
[1769177641886,0.36463546,2936.8,2935.7,0.00510742]
[1769177642083,0.36478216,2936.7,2935.7,0.00510742]
[1769177642286,0.1446836,2936.7,2935.7,0.00510742]
[1769177643186,0.36498136,2936.6,2935.7,0.00510742]
[1769177643380,0.1446836,2936.7,2935.7,0.00510742]
[1769177643581,1.27359533,2936.6,2935.7,0.00510742]
[1769177643781,0.9086194,2936.6,2935.7,0.00510742]
[1769177647290,0.1446836,2936.7,2935.7,0.00510742]
[1769177647487,0.36538773,2936.6,2935.7,0.00510742]
[1769177647690,0.1446836,2936.7,2935.7,0.00510742]
[1769177647892,0.36538735,2936.6,2935.7,0.00510742]
[1769177648094,0.9086194,2936.6,2935.7,0.00510742]
[1769177648296,0.51718791,2936.5,2935.7,0.00510742]
[1769177648590,0.36534456,2936.4,2935.7,0.00510742]
[1769177648792,0.15184335,2936.5,2935.7,0.00510742]
[1769177648992,0.36533792,2936.4,2935.7,0.00510742]
[1769177649192,0.15184335,2936.5,2935.7,0.00510742]
[1769177649787,1.06046275,2936.3,2935.1,3.06682118]
[1769177649993,0.15184335,2936.2,2934.9,8.10241118]
[1769177650792,0.15184335,2936.2,2935.0,0.9086194]
[1769177651091,0.00510742,2936.4,2935.0,0.9086194]
[1769177651284,0.36514362,2936.3,2935.0,0.9086194]
[1769177651488,0.00510742,2936.4,2935.0,0.9086194]
[1769177651691,0.36506792,2936.3,2935.0,0.9086194]
[1769177651896,0.00510742,2936.4,2935.0,0.9086194]
[1769177652094,0.36506051,2936.3,2935.0,0.9086194]
[1769177652290,0.00510742,2936.4,2935.0,0.9086194]
[1769177652495,0.36500118,2936.3,2935.0,0.9086194]
[1769177652693,0.00510742,2936.4,2935.0,0.9086194]
[1769177652894,0.36505296,2936.3,2935.0,0.9086194]
[1769177653097,0.00510742,2936.4,2935.0,0.9086194]
[1769177655696,0.15695077,2936.4,2935.0,0.9086194]
[1769177658600,0.15695077,2936.4,2935.1,0.13966844]
[1769177661202,0.00510742,2936.4,2935.1,0.13966844]
[1769177661407,0.00510742,2936.4,2935.3,0.9086194]
[1769177661602,0.00510742,2936.4,2935.3,1.04828784]
[1769177661797,0.00510742,2936.4,2935.1,0.9086194]
[1769177662193,0.15695077,2936.4,2935.0,0.17058]
[1769177664105,0.36511934,2936.3,2935.0,0.17058]
[1769177664305,0.15695077,2936.4,2935.0,0.17058]
[1769177664506,0.3651247,2936.3,2935.0,0.17058]
[1769177664708,0.15695077,2936.4,2935.0,0.17058]
[1769177664904,0.36512467,2936.3,2935.0,0.17058]
[1769177665103,0.9086194,2936.3,2935.0,0.17058]
[1769177668109,0.36555828,2936.2,2935.0,0.17058]
[1769177668315,0.9086194,2936.3,2935.0,0.17058]
[1769177668517,0.36557144,2936.2,2935.0,0.17058]
[1769177668712,0.15695077,2936.4,2935.0,0.17058]
[1769177668914,0.36557173,2936.3,2935.0,0.17058]
[1769177669113,0.36557173,2936.2,2935.0,0.17058]
[1769177669414,0.15695077,2936.4,2935.0,0.17058]
[1769177669612,0.36561068,2936.3,2935.0,0.17058]
[1769177669811,0.36561068,2936.2,2935.0,0.17058]
[1769177670010,0.15695077,2936.4,2935.0,0.17058]
[1769177670218,0.36561235,2936.3,2935.0,0.17058]
[1769177670516,0.36561235,2936.2,2935.0,0.17058]
[1769177670716,0.15695077,2936.4,2935.0,0.17058]
[1769177670917,0.36561945,2936.3,2935.0,0.17058]
[1769177671116,0.36561945,2936.2,2935.0,0.17058]
[1769177671418,0.15695077,2936.4,2935.0,0.17058]
[1769177671616,0.15184335,2936.2,2935.0,0.17058]
[1769177673318,0.15184335,2936.2,2935.0,3.23740118]
[1769177673620,0.15184335,2936.2,2935.0,0.17058]
[1769177674421,0.15184335,2936.2,2935.0,3.23740118]
[1769177676222,0.36610676,2936.1,2935.0,3.23740118]
[1769177676523,0.15184335,2936.2,2935.0,3.23740118]
[1769177676722,0.36611163,2936.1,2935.0,3.23740118]
[1769177677024,0.15184335,2936.2,2935.0,3.23740118]
[1769177677211,0.3662754,2936.1,2935.0,3.23740118]
[1769177677412,0.15184335,2936.2,2935.0,3.23740118]
[1769177677611,0.36634921,2936.1,2935.0,3.23740118]
[1769177677812,0.15184335,2936.2,2935.0,3.23740118]
[1769177678020,0.36635169,2936.1,2935.0,3.23740118]
[1769177678219,0.15184335,2936.2,2935.0,3.23740118]
[1769177678420,0.36647601,2936.1,2935.0,3.23740118]
[1769177678622,0.15184335,2936.2,2935.0,3.23740118]
[1769177678815,0.36647619,2936.1,2935.0,3.23740118]
[1769177679016,0.15184335,2936.2,2935.0,3.23740118]
[1769177679217,0.36650386,2936.1,2935.0,3.23740118]
[1769177679417,0.36650386,2936.0,2935.0,3.23740118]
[1769177679717,0.15184335,2936.2,2935.0,3.23740118]
[1769177679916,0.36660801,2936.1,2935.0,3.23740118]
[1769177680119,0.36660801,2936.0,2935.0,3.23740118]
[1769177680320,0.15184335,2936.2,2935.0,3.23740118]
[1769177680520,0.36661156,2936.1,2935.0,3.23740118]
[1769177680720,0.36661156,2936.0,2935.0,3.23740118]
[1769177680921,0.15184335,2936.2,2935.0,3.23740118]
[1769177681124,0.36673215,2936.1,2935.0,3.23740118]
[1769177681320,0.15184335,2936.2,2935.0,3.23740118]
[1769177681520,0.36673225,2936.1,2935.0,3.23740118]
[1769177681820,0.36673225,2936.0,2935.0,3.23740118]
[1769177682022,0.15184335,2936.2,2935.0,3.23740118]
[1769177682319,0.36672717,2936.1,2935.0,3.23740118]
[1769177682519,0.36672717,2936.0,2935.0,3.23740118]
[1769177682718,0.15184335,2936.2,2935.0,3.23740118]
[1769177682918,0.36672709,2936.1,2935.0,3.23740118]
[1769177683118,0.36672709,2936.0,2935.0,3.23740118]
[1769177683329,0.15184335,2936.2,2935.0,3.23740118]
[1769177683528,0.36672731,2936.1,2935.0,3.23740118]
[1769177683720,0.36672731,2936.0,2935.1,3.06682118]
[1769177683920,0.15184335,2936.2,2935.1,3.06682118]
[1769177684121,0.3666522,2936.1,2935.1,3.06682118]
[1769177684315,0.15184335,2936.2,2935.1,3.06682118]
[1769177684520,0.36665227,2936.1,2935.1,3.06682118]
[1769177684717,0.15184335,2936.2,2935.1,3.06682118]
[1769177684926,0.36664278,2936.1,2935.1,3.06682118]
[1769177685222,0.15184335,2936.2,2935.1,3.06682118]
[1769177685413,0.36664356,2936.1,2935.1,3.06682118]
[1769177685616,0.15184335,2936.2,2935.1,3.06682118]
[1769177685918,0.36664259,2936.1,2935.1,3.06682118]
[1769177686115,0.15184335,2936.2,2935.1,3.06682118]
[1769177686326,0.36664274,2936.1,2935.1,3.06682118]
[1769177686626,0.15184335,2936.2,2935.1,3.06682118]
[1769177686826,0.36664377,2936.1,2935.1,3.06682118]
[1769177687126,0.15184335,2936.2,2935.1,3.06682118]
[1769177687326,0.36671015,2936.1,2935.1,3.06682118]
[1769177687625,0.36671015,2936.0,2935.1,3.06682118]
[1769177687822,0.15184335,2936.2,2935.0,3.06682118]
[1769177688023,0.36672117,2936.1,2935.0,3.06682118]
[1769177688221,0.36672117,2936.1,2934.8,0.13966844]
[1769177688222,1.44854721,2936.0,2934.8,4.94]
[1769177688528,1.29678061,2935.9,2934.8,4.94]
[1769177688729,0.36672117,2935.8,2934.8,4.94]
[1769177689027,0.36672117,2935.7,2934.8,4.94]
[1769177689231,0.15173824,2936.0,2934.8,4.94]
[1769177689427,0.36632647,2935.9,2934.8,4.94]
[1769177689618,0.36632647,2935.8,2934.8,4.94]
[1769177689823,0.36632647,2935.7,2934.8,4.94]
[1769177690025,0.15173824,2936.0,2934.8,4.94]
[1769177690226,0.36635464,2935.9,2934.8,4.94]
[1769177690425,0.36635464,2935.8,2934.9,0.13911054]
[1769177690631,0.17051,2936.3,2934.9,0.13911054]
[1769177690828,1.2957588,2936.2,2934.9,0.13911054]
[1769177691028,1.2957588,2936.1,2934.9,0.13911054]
[1769177691229,0.36629913,2936.0,2934.9,5.08811054]
[1769177691428,0.36629913,2935.9,2934.9,5.08811054]
[1769177691624,0.36629913,2935.8,2934.9,5.08811054]
[1769177691824,0.17051,2936.3,2934.9,5.08811054]
[1769177692027,1.2942979,2936.2,2934.9,5.08811054]
[1769177692229,1.2942979,2936.1,2934.9,5.08811054]
[1769177692434,0.36486197,2936.0,2934.9,5.08811054]
[1769177692634,0.36486197,2935.9,2934.9,5.08811054]
[1769177692837,0.17051,2936.3,2934.9,5.08811054]
[1769177693040,1.29417749,2936.2,2934.9,5.08811054]
[1769177693230,0.36483172,2936.1,2935.0,0.13911054]
[1769177693432,0.36483172,2936.0,2935.0,0.13911054]
[1769177693633,0.15684566,2936.4,2935.0,0.13911054]
[1769177693831,1.29410622,2936.3,2935.0,0.13911054]
[1769177694032,0.36481656,2936.2,2935.0,0.13911054]
[1769177694228,0.36481656,2936.1,2935.0,0.13911054]
[1769177694433,0.36481656,2936.0,2935.0,0.13911054]
[1769177694739,0.15684566,2936.4,2935.0,0.13911054]
[1769177694937,1.29410695,2936.3,2935.0,0.13911054]
[1769177695235,0.36481746,2936.2,2935.0,0.13911054]
[1769177695433,0.36481746,2936.1,2935.0,0.13911054]
[1769177695634,0.36481746,2936.0,2935.0,0.13911054]
[1769177695834,0.15684566,2936.4,2935.0,0.13911054]
[1769177696138,1.29410933,2936.3,2935.0,0.13911054]
[1769177696340,0.36481879,2936.2,2935.0,0.13911054]
[1769177696635,0.15684566,2936.4,2935.0,0.13911054]
[1769177696636,0.36481879,2936.1,2935.0,0.13911054]
[1769177696836,0.36481879,2936.0,2935.0,0.13911054]
[1769177697036,0.15684566,2936.4,2935.0,0.13911054]
[1769177697226,1.29421119,2936.3,2935.0,0.13911054]
[1769177697427,0.36484761,2936.2,2935.0,0.13911054]
[1769177697629,0.36484761,2936.1,2935.0,0.13911054]
[1769177697829,0.36484761,2936.0,2935.0,0.13911054]
[1769177698035,0.15684566,2936.4,2935.0,0.13911054]
[1769177698232,1.29421617,2936.3,2935.0,0.13911054]
[1769177698436,0.36484959,2936.2,2935.0,0.13911054]
[1769177698743,0.36484959,2936.1,2935.0,0.13911054]
[1769177699042,0.36484959,2936.0,2935.0,0.13911054]
[1769177699229,0.15684566,2936.4,2935.0,0.13911054]
[1769177699428,1.29423369,2936.3,2935.0,0.13911054]
[1769177699631,0.36485563,2936.2,2935.0,0.13911054]
[1769177699939,0.36485563,2936.1,2935.0,0.13911054]
[1769177700144,0.36485563,2936.0,2935.0,0.13911054]
[1769177700437,0.15684566,2936.4,2935.0,0.13911054]
[1769177700634,1.29278222,2936.3,2935.0,0.13911054]
[1769177700842,0.36341625,2936.2,2935.0,0.13911054]
[1769177701038,0.36341625,2936.1,2935.0,0.13911054]
[1769177701337,0.36341625,2936.0,2935.0,0.13911054]
[1769177701639,0.15684566,2936.4,2935.0,0.13911054]
[1769177701840,1.29280068,2936.3,2935.0,0.13911054]
[1769177702139,0.36342196,2936.2,2935.0,0.13911054]
[1769177702339,0.36342196,2936.1,2935.0,0.13911054]
[1769177702640,0.36342196,2936.0,2935.0,0.13911054]
[1769177702840,0.15684566,2936.4,2935.0,0.13911054]
[1769177703043,1.29262852,2936.3,2935.0,0.13911054]
[1769177703242,0.36343514,2936.2,2935.0,0.13911054]
[1769177703445,0.15684566,2936.4,2935.0,0.13911054]
[1769177703743,1.29278249,2936.3,2935.0,0.13911054]
[1769177703946,0.5090712,2936.2,2934.9,4.949]
[1769177704140,0.36347894,2936.1,2934.9,4.949]
[1769177706438,0.14239178,2936.0,2934.8,3.06682118]
[1769177706747,0.50587072,2935.9,2934.6,5.12907765]
[1769177706943,0.36347894,2935.8,2934.6,5.12907765]
[1769177707142,0.36347894,2935.8,2934.6,0.14907765]
[1769177707445,0.36347894,2935.8,2934.6,5.12907765]
[1769177709045,0.50587072,2935.8,2934.6,0.0031507]
[1769177709244,0.36347894,2935.7,2934.6,0.15005234]
[1769177709448,0.31291178,2936.1,2934.6,0.15005234]
[1769177709748,1.29413529,2936.0,2934.6,0.15005234]
[1769177710042,0.31291178,2936.1,2934.6,0.15005234]
[1769177710043,0.36386931,2935.9,2934.6,0.15005234]
[1769177710239,0.36386931,2935.8,2934.6,0.15005234]
[1769177710437,0.31291178,2936.1,2934.6,0.15005234]
[1769177710634,1.29410227,2936.0,2934.6,0.15005234]
[1769177710840,0.36386173,2935.9,2934.6,0.15005234]
[1769177711040,0.36386173,2935.8,2934.6,0.15005234]
[1769177711238,0.14239178,2936.1,2934.7,0.14690164]
[1769177711443,0.36240636,2936.0,2934.7,0.14690164]
[1769177711748,0.36240636,2935.9,2934.7,0.14690164]
[1769177711949,0.36240636,2935.8,2934.7,0.14690164]
[1769177712141,0.14239178,2936.1,2934.7,0.14690164]
[1769177712446,0.36241693,2936.0,2934.7,0.14690164]
[1769177712644,0.36241693,2935.9,2934.7,0.14690164]
[1769177712844,0.36241693,2935.8,2934.7,0.14690164]
[1769177713045,0.14239178,2936.1,2934.7,0.14690164]
[1769177713248,0.36241779,2936.0,2934.7,0.14690164]
[1769177713448,0.36241779,2935.9,2934.7,0.14690164]
[1769177713749,0.14239178,2936.1,2934.7,0.14690164]
[1769177713750,0.36241779,2935.8,2934.7,0.14690164]
[1769177714051,0.00510742,2936.4,2934.8,0.14690164]
[1769177714248,1.29284735,2936.3,2934.8,0.14690164]
[1769177714439,1.29284735,2936.2,2934.8,0.14690164]
[1769177714740,0.36242504,2936.1,2934.8,0.14690164]
[1769177714942,0.36242504,2936.0,2934.8,0.14690164]
[1769177715138,0.36242504,2935.9,2934.8,0.14690164]
[1769177715341,0.14239178,2936.3,2934.8,0.14690164]
[1769177715543,1.29303372,2936.2,2934.8,0.14690164]
[1769177715739,0.36249094,2936.1,2934.8,0.14690164]
[1769177715948,0.36249094,2936.0,2934.8,0.14690164]
[1769177716145,0.36249094,2935.9,2934.8,0.14690164]
[1769177716354,0.14239178,2936.3,2934.8,0.14690164]
[1769177716548,1.29310226,2936.2,2934.8,0.14690164]
[1769177716756,0.50490864,2936.1,2934.8,0.14690164]
[1769177716955,0.36251686,2936.0,2934.8,0.14690164]
[1769177717147,0.36251686,2935.9,2934.7,3.23742118]
[1769177717347,0.14239178,2936.1,2934.7,3.23742118]
[1769177717544,0.3625505,2936.0,2934.7,3.23742118]
[1769177717747,0.50494228,2936.0,2934.8,5.006]
[1769177717953,0.3625505,2935.9,2934.8,5.006]
[1769177718247,0.14239178,2936.0,2934.8,5.006]
[1769177718450,0.36255579,2935.9,2934.8,5.006]
[1769177718653,0.14239178,2936.0,2934.8,5.006]
[1769177718859,0.36255591,2935.9,2934.8,5.006]
[1769177719155,0.14239178,2936.0,2934.8,5.006]
[1769177719356,0.36256435,2935.9,2934.8,5.006]
[1769177719657,0.14239178,2936.0,2934.7,3.23742118]
[1769177719856,0.3625717,2935.9,2934.8,5.012]
[1769177720052,0.14239178,2936.0,2934.8,5.012]
[1769177720250,0.36257135,2935.9,2934.8,5.012]
[1769177720445,0.14239178,2936.0,2934.8,5.012]
[1769177720647,0.36258814,2935.9,2934.8,5.012]
[1769177720856,0.14239178,2936.0,2934.8,5.012]
[1769177721055,0.36258838,2935.9,2934.8,5.012]
[1769177721353,0.14239178,2936.0,2934.8,5.012]
[1769177721556,0.36259127,2935.9,2934.8,5.012]
[1769177721852,0.14239178,2936.0,2934.8,5.012]
[1769177722055,0.36259262,2935.9,2934.8,5.012]
[1769177722246,0.14239178,2936.0,2934.8,5.012]
[1769177722453,0.3628114,2935.9,2934.8,5.012]
[1769177722652,0.14239178,2936.0,2934.8,5.012]
[1769177722847,0.36291489,2935.9,2934.8,5.012]
[1769177723053,0.36291489,2935.8,2934.8,5.012]
[1769177723256,0.14239178,2936.0,2934.8,5.012]
[1769177723456,0.36291611,2935.9,2934.8,5.012]
[1769177723658,0.36291611,2935.8,2934.8,5.012]
[1769177723859,0.14239178,2936.0,2934.8,5.012]
[1769177724062,0.36291614,2935.9,2934.8,5.012]
[1769177724251,0.36291614,2935.8,2934.8,5.012]
[1769177724452,0.14239178,2936.0,2934.8,5.012]
[1769177724655,0.36292088,2935.9,2934.8,5.012]
[1769177724858,0.14239178,2936.0,2934.8,5.012]
[1769177724859,0.36292088,2935.8,2934.8,5.012]
[1769177725059,0.14239178,2936.0,2934.8,5.012]
[1769177725260,0.36292197,2935.9,2934.8,5.012]
[1769177725458,0.36292197,2935.8,2934.8,5.012]
[1769177725660,0.14239178,2936.0,2934.8,5.012]
[1769177725854,0.36292685,2935.9,2934.8,5.012]
[1769177726065,0.36292685,2935.8,2934.8,5.012]
[1769177726260,0.36293527,2935.7,2934.8,5.012]
[1769177726465,0.14239178,2936.0,2934.8,5.012]
[1769177726663,0.14239178,2935.8,2934.7,5.2026]
[1769177726854,0.36293278,2935.7,2934.7,5.2026]
[1769177727456,0.36293278,2935.7,2934.7,5.032]
[1769177728262,0.14239178,2935.6,2934.6,3.06997188]
[1769177728463,0.36293278,2935.7,2934.6,0.0031507]
[1769177728464,0.14239178,2935.4,2934.6,0.0031507]
[1769177728665,0.36271745,2935.3,2934.6,0.0031507]
[1769177729169,0.14239178,2935.2,2934.1,3.06682118]
[1769177729368,0.36271745,2935.1,2934.0,3.06682118]
[1769177729562,0.36271745,2935.0,2933.9,5.038]
[1769177729762,0.14239178,2935.2,2933.9,5.038]
[1769177729966,0.00510742,2934.8,2933.9,5.038]
[1769177730168,0.00892287,2934.8,2933.9,0.0030067]
[1769177735472,0.00892287,2934.8,2933.9,0.15317755]
[1769177735672,0.1510864,2935.7,2934.0,0.15017085]
[1769177735869,0.17053,2935.9,2934.2,0.15017085]
[1769177736069,0.17053,2935.9,2934.3,0.15017085]
[1769177736070,0.36153181,2935.8,2934.3,0.15017085]
[1769177736265,0.17053,2935.9,2934.3,0.15017085]
[1769177736470,0.36155412,2935.8,2934.3,0.15017085]
[1769177736778,0.15446332,2935.8,2934.3,0.15017085]
[1769177737680,0.15446332,2935.8,2934.3,4.35517085]
[1769177738279,0.36016182,2935.7,2934.3,4.35517085]
[1769177738577,0.15446332,2935.8,2934.3,4.35517085]
[1769177739279,0.1510864,2935.6,2934.2,0.17063]
[1769177739967,0.51119667,2935.5,2934.2,0.17063]
[1769177740168,0.1510864,2935.5,2934.2,0.17063]
[1769177740982,0.1510864,2935.5,2934.1,0.00510742]
[1769177741376,0.3216464,2935.5,2934.1,0.00510742]
[1769177741676,0.1510864,2935.3,2934.1,0.00510742]
[1769177741980,0.1510864,2935.1,2934.1,0.00510742]
[1769177742379,0.1510864,2934.9,2933.2,7.68730656]
[1769177742578,0.1510864,2934.7,2933.2,7.68730656]
[1769177742882,0.1510864,2934.5,2933.0,5.038]
[1769177743379,0.1510864,2934.5,2933.0,0.00429768]
[1769177744869,0.1510864,2934.3,2933.0,0.00429768]
[1769177745584,0.91051696,2933.8,2933.0,0.00429768]
[1769177745882,0.1510864,2934.0,2933.0,0.00429768]
[1769177751888,6.498,2934.7,2933.6,0.91051696]
[1769177752090,0.1510864,2934.7,2933.3,0.91051696]
[1769177752291,0.91051696,2934.5,2933.0,1.06498549]
[1769177752482,1.06160336,2934.5,2933.0,1.06498549]
[1769177758193,0.1510864,2934.4,2933.0,0.91481464]
[1769177761492,1.06160336,2934.2,2933.0,0.00429768]
[1769177761792,0.1510864,2933.8,2933.0,0.00429768]
[1769177764298,0.14034888,2934.6,2933.3,0.91051696]
[1769177764495,1.42489722,2934.5,2933.3,0.91051696]
[1769177764700,0.14034888,2934.5,2933.3,0.91051696]
[1769177769296,0.3599109,2934.4,2933.3,0.91051696]
[1769177769496,0.14034888,2934.5,2933.3,0.91051696]
[1769177769689,0.35993541,2934.4,2933.3,0.91051696]
[1769177769889,0.14034888,2934.5,2933.3,0.91051696]
[1769177770090,0.35993561,2934.4,2933.3,0.91051696]
[1769177770290,0.14034888,2934.5,2933.3,0.91051696]
[1769177770490,0.3601623,2934.4,2933.3,0.91051696]
[1769177770698,1.08111696,2934.8,2933.3,1.0625836]
[1769177770897,0.36022584,2934.7,2933.6,0.91051696]